Cogmind - Beta 15 @@@ ROGUE MODE // 2025.05.10 @ 08:43:54 Player: laeb2 Result: Destroyed by MP-13R(j) with Overtuned Pulse Rifle Performance ------------- Evolutions (0) 0 Regions Visited (3) 600 Robots Destroyed (23) 115 Value Destroyed (635) 635 Prototype IDs (9) 180 Alien Tech Used (0) 0 Bonus (800) 800 TOTAL SCORE: 2330 Bonus ------- Registered with UFD 300 Met Optimus in HQ 500 Cogmind --------- Core Integrity 0/250 Matter 300/300 Energy 97/100 System Corruption 3% Temperature Cool (18) Movement Rolling (115) Ox1 Location -9/Scraptown Parts ------- > --- POWER (1) -------- (None) > --- PROPULSION (2) --- Compact Wheel > --- UTILITY (2) ------ Large Storage Unit Experimental Terrain Scanner > --- WEAPON (2) ------- Light Assault Rifle Katana > --- INVENTORY (15) --- Subdweller Power Source Deuterium Engine Utility Shielding Makeshift Hacking Suite Makeshift Hacking Suite Tech Extrapolator Medium Laser Subdweller Beam Cannon Bolt Gun Improved Datajack Scrap Shield Fragment (48) Scrap Shield Fragment (48) Scrap Shield Fragment (23) Peak State ------------ > --- POWER ------------ Ion Engine > --- PROPULSION ------- Compact Wheel > --- UTILITY ---------- Large Storage Unit Experimental Terrain Scanner > --- WEAPON ----------- Light Assault Rifle Katana > --- INVENTORY -------- Subdweller Power Source Deuterium Engine Compact Wheel Utility Shielding Makeshift Hacking Suite Makeshift Hacking Suite Tech Extrapolator Medium Laser Subdweller Beam Cannon Bolt Gun Improved Datajack Scrap Shield Fragment Scrap Shield Fragment Scrap Shield Fragment [Rating: 19] Favorites ----------- Power Ion Engine Engine Ion Engine Propulsion Wheel Wheel Wheel Utility Large Storage Unit Device Improved Terrain Scanner Storage Large Storage Unit Weapon Grenade Launcher Energy Gun Medium Laser Energy Cannon Subdweller Beam Cannon Ballistic Gun Bolt Gun Launcher Grenade Launcher Slashing Weapon Katana Build | -11 -10 -10 -9 ------- Run | Yrd Mat Sub Scr Slots Evolved . | . . . . Power . | . . . . Propulsion . | . . . . Utility . | . . . . Weapon . | . . . . Parts Attached 22 | 6 3 5 8 Power 4 | . 1 1 2 Engine 4 | . 1 1 2 Core . | . . . . Reactor . | . . . . Propulsion 7 | 2 . 2 3 Treads . | . . . . Leg . | . . . . Wheel 7 | 2 . 2 3 Hover . | . . . . Flight . | . . . . Utility 5 | 2 2 . 1 Device 2 | 1 . . 1 Storage 3 | 1 2 . . Processor . | . . . . Hackware . | . . . . Protection . | . . . . Artifact . | . . . . Weapon 6 | 2 . 2 2 Energy Gun 1 | 1 . . . Energy Cannon 1 | . . 1 . Ballistic Gun 2 | 1 . . 1 Ballistic Cannon . | . . . . Launcher 1 | . . 1 . Special Weapon . | . . . . Impact Weapon . | . . . . Slashing Weapon 1 | . . . 1 Piercing Weapon . | . . . . Special Melee Weapon . | . . . . Unidentified Prototypes . | . . . . Parts Lost 9 | . . 4 5 Power 2 | . . 1 1 Propulsion 6 | . . 3 3 Utility . | . . . . Weapon 1 | . . . 1 Highest Loss Streak 4 | . . 2 4 To Critical Strikes . | . . . . Average Backups 11 | 4 8 9 11 Power 1 | 1 1 1 2 Propulsion 3 | 2 5 4 3 Utility 1 | . . 1 1 Weapon 3 | . . 2 3 Tool/Special . | . . . . Unused Backups 10 | . . . 10 Power 1 | . . . 1 Propulsion 2 | . . . 2 Utility 5 | . . . 5 Weapon 1 | . . . 1 Tool/Special 1 | . . . 1 Average Slot Usage (%) 95 | . 100 92 95 Engine 13 | . 14 12 13 Wheel 23 | . 28 22 23 Device 14 | . 14 14 14 Storage 14 | . 14 14 14 Energy Gun 1 | . 14 5 . Energy Cannon 3 | . . 9 2 Ballistic Gun 10 | . 14 . 12 Launcher 12 | . . 12 13 Peak Build Rating 19 | 8 10 13 19 Average Rating 12 | 4 9 11 12 On Entrance 7 | . 8 9 12 Naked Turns . | . . . . Heaviest Build 41 | 9 27 37 41 Greatest Support 20 | 20 20 20 20 Greatest Overweight (x) 4 | . 1 3 4 Average Overweight (x) 1 | . . 1 1 Largest Inventory Capacity 15 | 8 15 15 15 Average Capacity 14 | 7 13 15 15 Most Carried 15 | 7 10 15 15 Average Carried 14 | 4 8 14 14 Final Capacity 15 | 8 15 15 15 Final Carried 15 | 7 9 15 13 Class Distribution -------------------- 81% | Mutant 18% | Scavenger-Mutant Dominant Class ---------------- Mutant | -10/Materials Scavenger-Mutant | -10/Subcaves Mutant | -9/Scraptown Resources | -11 -10 -10 -9 ----------- Run | Yrd Mat Sub Scr Matter Collected 706 | 282 34 182 208 Remotely . | . . . . Salvage Created 851 | 225 67 391 168 Parts 57 | 17 2 28 10 Haulers Intercepted . | . . . . Recyclers Shooed 1 | 1 . . . Parts Field Recycled . | . . . . Retrieved Matter . | . . . . Parts Self-Destructed 3 | . . 3 . Prevented . | . . . . Kills | -11 -10 -10 -9 ------- Run | Yrd Mat Sub Scr Combat Hostiles Destroyed 15 | . 1 11 3 Guns 3 | . 1 1 1 Cannons 5 | . . 3 2 AOE 7 | . . 7 . Classes Destroyed 9 | 3 2 1 3 Worker 1 | 1 . . . Tunneler 5 | 5 . . . Recycler 1 | 1 . . . Watcher 1 | . 1 . . Grunt 1 | . 1 . . Subdweller 11 | . . 11 . Bolteater 1 | . . . 1 Explorer 1 | . . . 1 Guru 1 | . . . 1 Best Kill Streak 5 | 5 1 2 2 Combat Bots Only 2 | . 1 2 2 Max Kills in Single Turn 2 | 1 1 2 1 Gunslinging . | . . . . Exploded 2 | . . 2 . Melee . | . . . . Uniques/NPCs Destroyed . | . . . . Combat | -11 -10 -10 -9 -------- Run | Yrd Mat Sub Scr Hostile Shots Fired 91 | . 5 17 69 Missed 33 | . 1 6 26 Hits 58 | . 4 11 43 Melee 9 | . . . 9 Projectile 49 | . 4 11 34 Part Disruptions 2 | . . . 2 Damage Taken 980 | . 104 268 608 Core 268 | . 1 12 255 Absorbed by Shields . | . . . . Core Remaining (%) 100 | 100 . . . Volleys Fired 86 | 22 17 25 22 Largest 2 | 2 2 2 2 Hottest 130 | 70 70 130 100 Shots Fired 159 | 44 34 40 41 Gun 116 | 44 34 8 30 Cannon 24 | . . 13 11 Launcher 19 | . . 19 . Special . | . . . . Kinetic 69 | 22 17 . 30 Thermal 71 | 22 17 21 11 Explosive 19 | . . 19 . Electromagnetic . | . . . . Robot Hit Streak 13 | 7 10 13 11 Robot Miss Streak 3 | 3 3 1 3 Penetration Max . | . . . . Secondary Targets 1 | . 1 . . Max Gunslinging Chain 1 | . 1 . . Shots Hit Robots 98 | 27 24 16 31 Core Hits 42 | 11 5 19 7 Critical Kills . | . . . . Critical Parts Destroyed . | . . . . Critical Strikes 2 | 1 . 1 . Burn 2 | 1 . 1 . Melee Attacks 3 | . . . 3 Impact . | . . . . Slashing 3 | . . . 3 Piercing . | . . . . Sneak Attacks . | . . . . Combat Hostiles . | . . . . Follow-up Attacks . | . . . . Damage Inflicted 1847 | 296 275 880 396 Guns 811 | 296 266 87 162 Cannons 429 | . . 218 211 Explosions 575 | . . 575 . Melee 23 | . . . 23 Ramming 9 | . 9 . . Kinetic 368 | 84 122 . 162 Thermal 872 | 212 144 305 211 Explosive 575 | . . 575 . Electromagnetic . | . . . . Impact . | . . . . Slashing 23 | . . . 23 Piercing . | . . . . Highest Corruption 3 | . . . 3 Average Corruption 1 | . . . 1 Corruption Purged . | . . . . Corruption Blocked . | . . . . Effects 1 | . . . 1 Data Loss (minor) 1 | . . . 1 Overload Shots . | . . . . Overflow Damage 30 | . . 5 25 Projectiles 19 | . . . 19 Explosions 5 | . . 5 . Melee 6 | . . . 6 Knockbacks . | . . . . Impact . | . . . . Kinetic . | . . . . Secondary . | . . . . Self-Inflicted Damage 57 | . 4 53 . Shots 3 | . . 3 . Rammed 2 | . 2 . . Targets Rammed 2 | . 2 . . Kicked . | . . . . Crushed . | . . . . Highest Temperature 390 | 40 108 27 390 Average Temperature 77 | 20 41 10 175 Received Heat Transfer 174 | . 39 51 84 Effects 2 | . . . 2 Shutdowns 1 | . . . 1 Matter Decay 1 | . . . 1 Siege Activations . | . . . . Martial Activations . | . . . . Shielding Activations . | . . . . Robots Disrupted . | . . . . Combat Hostiles . | . . . . Robots Corrupted . | . . . . Combat Hostiles . | . . . . Parts Fried . | . . . . Impact Corruptions . | . . . . Robots Melted . | . . . . Combat Hostiles . | . . . . Parts Melted 9 | 5 2 2 . Heat Transferred 2035 | 703 407 629 296 Parts Sabotaged . | . . . . Parts Stolen . | . . . . Parts Stripped . | . . . . Power Chain Reactions . | . . . . Alert | -11 -10 -10 -9 ------- Run | Yrd Mat Sub Scr Maximum Alert Level . | . . . . Low Security (%) 100 | 100 100 . . Level 1 . | . . . . Level 2 . | . . . . Level 3 . | . . . . Level 4 . | . . . . Level 5 . | . . . . High Security . | . . . . Max Security . | . . . . Peak Influence 30 | 10 30 . . Initial . | . . . . Average 3 | 3 2 . . Influence Increases 73 | 35 38 . . Destroy 0b10 Robot/C 20 | . 20 . . Destroy 0b10 Robot/NC 40 | 35 5 . . Destroy Leader 12 | . 12 . . Destroy Structure 1 | . 1 . . Influence Decreases 73 | 35 38 . . Time Decay 73 | 35 38 . . Squads Dispatched 2 | . 2 . . Investigation 2 | . 2 . . Extermination . | . . . . Reinforcement . | . . . . Assault . | . . . . Garrison . | . . . . Intercept . | . . . . Searches Triggered . | . . . . Construction Impeded . | . . . . Haulers Reinforced . | . . . . Active Scanning Responses . | . . . . Cargo Convoy Interrupts . | . . . . Stealth | -11 -10 -10 -9 --------- Run | Yrd Mat Sub Scr Distress Signals 1 | . 1 . . Communications Jammed . | . . . . Distress Signals . | . . . . Times Spotted 40 | . 11 10 19 Peak Tracking Total 13 | . 4 2 13 Tactical Retreats . | . . . . Traps | -11 -10 -10 -9 ------- Run | Yrd Mat Sub Scr Traps Triggered 3 | . 3 . . Indirectly . | . . . . Trap Hack Attempts . | . . . . Triggered . | . . . . Disarmed . | . . . . Reprogrammed . | . . . . Reused . | . . . . Traps Extracted . | . . . . Installed . | . . . . Triggered . | . . . . Machines | -11 -10 -10 -9 ---------- Run | Yrd Mat Sub Scr Machines Disabled . | . . . . Max in Single Turn . | . . . . Machines Repaired . | . . . . Machines Dismantled . | . . . . Machines Sabotaged . | . . . . Overloaded Fab Kills . | . . . . Hacking | -11 -10 -10 -9 --------- Run | Yrd Mat Sub Scr Machines Accessed 6 | . 1 . 5 Terminals 1 | . 1 . . Fabricators . | . . . . Repair Stations . | . . . . Recycling Units . | . . . . Scanalyzers . | . . . . Garrison Access . | . . . . Total Hacks 28 | . 3 . 25 Successful 26 | . 1 . 25 Failed 2 | . 2 . . Catastrophic . | . . . . Database Lockouts . | . . . . Manual 3 | . 3 . . Terminals 3 | . 3 . . Fabricators . | . . . . Repair Stations . | . . . . Recycling Units . | . . . . Scanalyzers . | . . . . Garrison Access . | . . . . Terminal Hacks 26 | . 1 . 25 Record 19 | . . . 19 Robot Analysis 7 | . 1 . 6 Fabricator Hacks . | . . . . Repair Station Hacks . | . . . . Recycling Unit Hacks . | . . . . Scanalyzer . | . . . . Garrison Access Hacks . | . . . . Unauthorized Hacks . | . . . . Terminals . | . . . . Fabricators . | . . . . Repair Stations . | . . . . Recycling Units . | . . . . Scanalyzers . | . . . . Garrison Access . | . . . . Data Cores Recovered . | . . . . Used . | . . . . Hacking Detections 1 | . 1 . . Full Trace Events . | . . . . Feedback Events . | . . . . Feedback Blocked . | . . . . Robot Schematics Acquired . | . . . . Robots Built . | . . . . Authchips . | . . . . Time . | . . . . Total Robot Build Rating . | . . . . Part Schematics Acquired . | . . . . Parts Built . | . . . . Authchips . | . . . . Time . | . . . . Total Part Build Rating . | . . . . Parts Repaired . | . . . . Time . | . . . . Parts Recycled . | . . . . Recycled Matter . | . . . . Retrieved Matter . | . . . . Retrieved Components . | . . . . Parts Scanalyzed . | . . . . Part Schematics Acquired . | . . . . Parts Damaged . | . . . . Bothacking | -11 -10 -10 -9 ------------ Run | Yrd Mat Sub Scr Used RIF Installer . | . . . . Robots Hacked . | . . . . Non-combat . | . . . . Combat . | . . . . Robot Hacks Applied . | . . . . Relay Couplers Released . | . . . . Fabnet Peak Effective % . | . . . . Robots Rewired . | . . . . Allies Hacked . | . . . . Hacks Repelled . | . . . . Allies | -11 -10 -10 -9 -------- Run | Yrd Mat Sub Scr Total Allies . | . . . . Largest Group . | . . . . Highest-Rated Group . | . . . . Highest-Rated Ally . | . . . . Total Orders . | . . . . Ally Attacks . | . . . . Total Damage . | . . . . Kills . | . . . . Allies Corrupted . | . . . . Allies Melted 2 | . . . 2 Intel | -11 -10 -10 -9 ------- Run | Yrd Mat Sub Scr Active Infowar (turns) 5547 | 11 311 726 4499 Terrain 5547 | 11 311 726 4499 Robot Analysis Total 7 | . 1 . 6 Derelict Logs Recovered 4 | . . 1 3 Drone Launches . | . . . . Drone Recoveries . | . . . . Exploration | -11 -10 -10 -9 ------------- Run | Yrd Mat Sub Scr Turns Passed 5659 | 123 311 726 4499 Spaces Moved 2869 | 58 265 590 1956 Core 17 | 17 . . . Treads . | . . . . Legs . | . . . . Wheels 2852 | 41 265 590 1956 Hover . | . . . . Flight . | . . . . Fastest Speed 50 | 50 80 95 95 Average Speed 102 | 71 90 103 104 Slowest Speed 140 | 80 95 125 140 Overloaded Moves . | . . . . Propulsion Burnouts . | . . . . Robots Hopped . | . . . . Potential Cave-ins . | . . . . Cave-ins Triggered . | . . . . Exploration Rate (%) 49 | 4 45 56 92 Regions Visited 3 Branch Regions 2 Pre-discovered Areas . | . . . . Known Exits Taken . | . . . . Unknown Exits Taken 3 | 1 1 1 . Scrap Searched 5 | . . 1 4 Spaces Dug 1 | . . 1 . Terrain Destroyed 128 | . . 126 2 Melee . | . . . . Projectile 4 | . . 2 2 AOE 124 | . . 124 . Terrain Rammed . | . . . . Walls Destroyed . | . . . . Machines Disabled . | . . . . Actions | -11 -10 -10 -9 --------- Run | Yrd Mat Sub Scr Total 5431 | 99 304 665 4363 Wait 2405 | 2 11 36 2356 Move 2866 | 57 264 589 1956 Hop . | . . . . Pick Up 34 | 12 5 9 8 Fast Attach 3 | 1 . . 2 Attach 13 | 5 1 3 4 Detach . | . . . . Swap 10 | . 2 3 5 Drop 9 | . 2 . 7 Fire 86 | 22 17 25 22 Melee 3 | . . . 3 Ram 2 | . 2 . . Kick . | . . . . Crush . | . . . . Escape Stasis . | . . . . Rewire . | . . . . Trap . | . . . . Miscellaneous . | . . . . Route ------- -11/Scrapyard -10/Materials (discovered 3 exits: [Mat] / [*Min] / [*Sub]) -10/Subcaves (discovered 3 exits: [*Mat] / *Scr x2) -9/Scraptown (discovered 2 exits: [*Fac x2]) History --------- Turn | Location | Event 13 | -11/Scrapyard | Discovered new exit (range 15) 124 | -11/Scrapyard | Entered Materials 125 | -10/Materials | Met a group of wandering Federalists 212 | -10/Materials | Discovered new exit (range 12) 313 | -10/Materials | Build established: Mutant 317 | -10/Materials | Discovered new exit (range 6) 432 | -10/Materials | Discovered new exit (range 5) 435 | -10/Materials | Entered Subcaves 436 | -10/Subcaves | Continued accompanying wandering Federalists (1) 436 | -10/Subcaves | Approached by a straggling Scientist 818 | -10/Subcaves | Discovered new exit (range 13) 922 | -10/Subcaves | Shifting Twisted Machinery released Mak. Power Source 947 | -10/Subcaves | Build established: Scavenger-Mutant 965 | -10/Subcaves | Shifting Twisted Machinery released Spk. Treads 1042 | -10/Subcaves | Shifting Twisted Machinery released Ripper 1046 | -10/Subcaves | Shifting Twisted Machinery released Piercing Trap 1157 | -10/Subcaves | Scientist uncovered a shortcut to Scraptown 1161 | -10/Subcaves | Entered Scraptown 1248 | -9/Scraptown | Visited UFD Registry 1248 | -9/Scraptown | Registered with UFD as "Railframe" 1265 | -9/Scraptown | Visited SPCMW 1290 | -9/Scraptown | Visited TADAMA 1315 | -9/Scraptown | Visited Awakened 1350 | -9/Scraptown | Scanned Subdweller tech in exchange for log data 1353 | -9/Scraptown | Learned Research emergency access door positions 1354 | -9/Scraptown | Learned 12 Factory zone layouts 1355 | -9/Scraptown | Learned location of 1 exit from Factory 1395 | -9/Scraptown | Guru changed UFD alias to "Wavelever" 1416 | -9/Scraptown | Discovered new exit (range 13) 1506 | -9/Scraptown | Visited Cyclists 1516 | -9/Scraptown | Entered Cyclist Reading Room 1555 | -9/Scraptown | Visited Fellowship of the Rings 1578 | -9/Scraptown | Visited Red Mages 1656 | -9/Scraptown | Visited Symbiants 1930 | -9/Scraptown | Visited Curators Association 2021 | -9/Scraptown | Build established: Mutant 2231 | -9/Scraptown | Visited Junk Cannon Lab 2274 | -9/Scraptown | Visited Analyses Database 2496 | -9/Scraptown | Visited Scrapoid Pod Storage 3859 | -9/Scraptown | Visited Supply Room 4165 | -9/Scraptown | Visited Abandonware Association 4183 | -9/Scraptown | Learned abandonware demo "KABOOM.EXE" 4183 | -9/Scraptown | Learned abandonware demo "REBOOT5.EXE" 4234 | -9/Scraptown | Discovered new exit (range 5) 4326 | -9/Scraptown | Visited Junk Repository 4356 | -9/Scraptown | Visited Infowarlord's Domain 4363 | -9/Scraptown | Found Exp. Terrain Scanner 5466 | -9/Scraptown | Met Optimus 5466 | -9/Scraptown | Accepted into 0bPrime 5553 | -9/Scraptown | Civil war broke out across Scraptown 5611 | -9/Scraptown | Lost 7 allies 5644 | -9/Scraptown | Core integrity fell below 50% 5656 | -9/Scraptown | Core integrity fell below 20% 5660 | -9/Scraptown | Destroyed by MP-13R(j) with Overtuned Pulse Rifle Last Messages --------------- 05612_ 1E-8EY(g) destroyed. 05614_ Acquired Tech Extrapolator. 05615_ Acquired 16 matter. 05617_ SK-ZVK(j) suffers critical hit (Burn). 05617_ Bolt penetrates N2-YD6(x). 05617_ SK-ZVK(j) overheating. 05618_ SK-ZVK(j) destroyed. 05620_ Bolt penetrates Wall. 05622_ Bolt penetrates N2-YD6(x). 05625_ Bolt penetrates Wall. 05625_ Wheel destroyed. 05627_ Bolt penetrates N2-YD6(x). 05632_ System corrupted: Component data lost. 05634_ Wheel destroyed. 05636_ Sub. Beam Cannon shoots sparks and powers down. 05641_ Destroyed Lgt. Ion Engine. 05645_ Ion Engine destroyed. 05650_ Com. Wheel destroyed. 05654_ Acquired 35 matter. Map ----- +----------------------------------------------------+ | #???????????????#?############???#???#???????????? | | ""????????????????#"" ###????????????????????? | | "#???????????#?#?#" < ??####################? | | "#??#?########??##"" #?#"""""""""#"""""""""#? | | "#???#"""""""##???#??# #?#" "#" "#? | | "#???#"" ""##?????## ###" """ "#? | | "#???#"" ""#???#???# ###" "#" "" "#? | | ""###?#""" ""#????#### #?#" """ "#" " "#? | | #?#"" ""#??????##!!=###" "#" "#? | | ###""" """########[*=[!##"""""" ""#"" """"""#? | | =%[ #? | | = ! #? | | %j #? | | ###### ###########j ##########"" """"#####? | | ###### ############ j ####???#??#" "#?#??# | | #""""" """""#####?#j #########?#" ""###??? | | #" " " #?# """"""""###" """#??#?? | | " ""#" " " "### ### " ""###" """#??#?? | | " "#" " " "#"" """!g "###"""""""#?#??# | | " "#""""" """""#" """ " ""##########?????# | | "###### ######" " """"""""#???#??#?#??##?? | | "#""""" """""#" ##"""####?##?#??######## | | " ""#" " " "#" "" " #############?## | | # ###" " " "#" " #?# #?# """""" | | # " " "#"""""" x #?# ### "" "" | | #####""""" """""#######! @#?# """"" ### " " | | ##?####### ########?###%[[#?# """""= ### " " | | ########## ############p==### "" ""%!#?# " " | | !%! !%!%### [* ### " " | | = ==%!### !%! #?# "" "" | | #####################;#%=/##" *!===### """""" | | #?#??##??####??#?#####! =%#?# *%! ##?# | | #####??????#######""""#=!!###"##"##"[""### ####### | | """"##????"""??#"X" # [=* [%! =%/ %= | | "####???""??# # ! =! %! %/ | | ! "#??##?"? "?# # j ==! * | | ! "##??#????""# ! ! %= | | [ "#?##?####### # *[% ! | | "##??##""" ## # ####%#######"""#![= | | = "#?#??#" #%! !%##" "### ## %* | | / "#?####" ## #[ !##" "##??## | | "###?###X "# # ##" "#?#### | | " ""#?#?#?#X "#""" # ## """ "#?#### | | # ###?############### ##" """ "##???# | | # #######??####?#?#?# ##" """ "#?#??# | | " ""###??###?#?###?## ##" "#??#?# | | "################# ##" "##??## | | " "#?##### # ##"""""""?"####?# | | " "#?#???# # ########?######?# | | "#???### # #??#?##?#?#?#???# | +----------------------------------------------------+ Best States ------------- Heat Dissipation 25 Energy Generation 15 Energy Capacity 250 Matter Stores 300 Matter Capacity 300 Sight Range 16 Terrain Scan Range 30 Terrain Scan Density 10 Evasion (%) 50 Item Schematics ----------------- None Robot Schematics ------------------ None Fabricated ------------ Nothing Repaired ---------- Nothing Alien Tech Used ----------------- None Achievements -------------- None Challenges ------------ None Game ------ Seed ContainmentPortableTreads Manual? 0 Play Time 00:34:08 Cumulative 87.6 hours Start 2025.05.10 @ 08:09:40 End 2025.05.10 @ 08:43:54 Sessions 1 Manual Loads 0 Difficulty Rogue Special Mode None Game No. 111 Rogue 111 Adventurer 0 Explorer 0 Win Type - Total 1 Types 1/0/0/0/0/0/0/0/0/0 Lore% 62 Gallery% 53 Achievement% 51 Wizard Run 0 Options --------- Layout 2 ASCII 0 Keyboard 0 Movement Mouse Keybinds 0 Fullscreen 1 Font 32/SmallcapsGlow Map View 50x44 Zoom Use 0% Tactical HUD 1 Map Filters NONE Filters NONE Steam 1 RUN: c9116af6-29fa-4f4c-b4d5-94e45d170739